bitfinex-derivatives/quotes_BTCF0:USTF0_20250106
["timestamp","ask_amount","ask_price","bid_price","bid_amount"]
[1736190166287,0.086315,101770.0,101760.0,0.049118]
[1736190166770,0.086315,101770.0,101760.0,0.14183813]
[1736190167385,0.088315,101770.0,101760.0,0.14183813]
[1736190167884,0.090315,101770.0,101760.0,0.14183813]
[1736190169181,0.004,101770.0,101760.0,0.59535826]
[1736190169686,0.004,101770.0,101760.0,0.54073813]
[1736190169885,0.004,101770.0,101760.0,0.63345826]
[1736190170379,0.004,101770.0,101760.0,0.54073813]
[1736190170587,0.004,101770.0,101760.0,0.50263813]
[1736190171874,0.004,101770.0,101760.0,0.14183813]
[1736190172081,0.094514,101770.0,101760.0,0.049118]
[1736190172670,0.455314,101770.0,101760.0,0.049118]
[1736190172874,0.049118,101760.0,101750.0,0.049122]
[1736190173083,0.455316,101770.0,101760.0,0.049118]
[1736190173583,0.094516,101770.0,101760.0,0.14183813]
[1736190174181,0.0454,101770.0,101760.0,0.50263813]
[1736190174384,0.455314,101770.0,101760.0,0.14183813]
[1736190174573,0.092514,101770.0,101760.0,0.049118]
[1736190175477,0.092514,101770.0,101760.0,0.14183813]
[1736190175672,0.0434,101770.0,101760.0,0.50263813]
[1736190175880,0.002,101770.0,101760.0,0.50263813]
[1736190176086,0.002,101770.0,101760.0,0.59535826]
[1736190176285,0.004,101770.0,101760.0,0.59535826]
[1736190176585,0.004,101770.0,101760.0,0.54373813]
[1736190176780,0.053114,101770.0,101760.0,0.049118]
[1736190177180,0.093814,101770.0,101760.0,0.049118]
[1736190177382,0.093814,101770.0,101760.0,0.14183813]
[1736190177984,0.093814,101770.0,101760.0,0.049118]
[1736190178588,0.454614,101770.0,101760.0,0.049118]
[1736190179175,0.093814,101770.0,101760.0,0.049118]
[1736190180389,0.454614,101770.0,101760.0,0.049118]
[1736190180590,0.54733413,101770.0,101760.0,0.049118]
[1736190181091,0.049123,101750.0,101740.0,0.05898707]
[1736190181284,0.049123,101750.0,101740.0,0.049126]
[1736190181490,0.089323,101750.0,101740.0,0.049126]
[1736190182494,0.090323,101750.0,101740.0,0.053126]
[1736190182889,0.090323,101750.0,101740.0,0.055126]
[1736190183286,0.001,101750.0,101740.0,0.14784613]
[1736190183492,0.14667334,101750.0,101740.0,0.50864613]
[1736190183692,0.14667334,101750.0,101740.0,0.50664613]
[1736190183994,0.14867334,101750.0,101740.0,0.58734613]
[1736190184186,0.14867334,101750.0,101740.0,0.62894613]
[1736190184697,0.09061921,101750.0,101740.0,0.62894613]
[1736190184889,0.09161921,101750.0,101740.0,0.62494613]
[1736190185795,0.08961921,101750.0,101740.0,0.62494613]
[1736190185996,0.08861921,101750.0,101740.0,0.494626]
[1736190186388,0.08861921,101750.0,101740.0,0.094526]
[1736190186389,0.13774221,101750.0,101740.0,0.094526]
[1736190186585,0.59126234,101750.0,101740.0,0.053126]
[1736190186784,0.62976234,101750.0,101740.0,0.006]
[1736190187388,0.62976234,101750.0,101740.0,0.004]
[1736190187595,0.53704221,101750.0,101740.0,0.14584813]
[1736190187790,0.53804221,101750.0,101740.0,0.049128]
[1736190188498,0.63476234,101750.0,101740.0,0.049128]
[1736190188800,0.60009634,101750.0,101740.0,0.049128]
[1736190189298,0.69281647,101750.0,101740.0,0.049128]
[1736190189599,0.049128,101740.0,101730.0,0.04913]
[1736190189794,0.049133,101730.0,101720.0,0.27609734]
[1736190189992,0.50265313,101730.0,101720.0,0.26634628]
[1736190190190,0.049133,101730.0,101720.0,0.26634628]
[1736190190694,0.049133,101730.0,101720.0,0.22514628]
[1736190190999,0.049133,101730.0,101720.0,0.31786641]
[1736190191194,0.050133,101730.0,101720.0,0.36206641]
[1736190191504,0.001,101730.0,101720.0,0.72286641]
[1736190191799,0.14667334,101730.0,101720.0,0.58805613]
[1736190192196,0.14667334,101730.0,101720.0,0.59005613]
[1736190193002,0.001,101730.0,101720.0,0.76606641]
[1736190193296,0.001,101730.0,101720.0,0.76406641]
[1736190194302,0.59720234,101740.0,101720.0,0.71093041]
[1736190194500,0.59720234,101740.0,101730.0,0.049133]
[1736190196197,0.69392247,101740.0,101730.0,0.049133]
[1736190196388,0.049133,101730.0,101720.0,0.99534728]
[1736190196800,0.50265313,101730.0,101720.0,0.26534728]
[1736190197098,0.22960896,101730.0,101720.0,0.089337]
[1736190197406,0.59040896,101730.0,101720.0,0.049137]
[1736190197898,0.59040896,101730.0,101720.0,0.051137]
[1736190198403,0.50265313,101730.0,101720.0,0.051137]
[1736190199098,0.76361177,101740.0,101720.0,0.50465713]
[1736190199299,0.01103583,101730.0,101720.0,0.411937]
[1736190199488,0.73083977,101740.0,101730.0,0.049132]
[1736190199489,0.68171177,101740.0,101730.0,0.049132]
[1736190199693,0.32091177,101740.0,101730.0,0.087632]
[1736190200896,0.37003877,101740.0,101730.0,0.087632]
[1736190201499,0.14081637,101740.0,101730.0,0.087632]
[1736190202101,0.14681637,101740.0,101730.0,0.087632]
[1736190202709,0.14681637,101740.0,101730.0,0.817632]
[1736190204002,0.14681637,101740.0,101730.0,0.087632]
[1736190204201,0.049132,101730.0,101720.0,0.17601028]
[1736190204400,0.71137226,101730.0,101720.0,0.17601028]
[1736190204800,0.61865213,101730.0,101720.0,0.17601028]
[1736190205415,0.62065213,101730.0,101720.0,0.17601028]
[1736190206012,0.70517243,101730.0,101720.0,0.049137]
[1736190206311,0.66687243,101730.0,101720.0,0.049137]
[1736190206708,0.17923843,101730.0,101720.0,0.50265713]
[1736190206906,0.17923843,101730.0,101720.0,0.54105713]
[1736190207309,0.15008842,101730.0,101720.0,0.54105713]
[1736190209004,0.20868103,101730.0,101720.0,0.54105713]
[1736190210104,0.20868103,101730.0,101720.0,1.27105713]
[1736190211509,0.09172044,101730.0,101720.0,1.68226579]
[1736190212312,0.09172044,101730.0,101720.0,1.72086579]
[1736190215417,0.09172044,101730.0,101720.0,1.73073275]
[1736190216214,0.09172044,101730.0,101720.0,1.82345288]
[1736190216416,0.26304901,101740.0,101720.0,1.04986975]
[1736190216617,0.26304901,101740.0,101730.0,0.54185213]
[1736190217012,0.26304901,101740.0,101730.0,1.27185213]
[1736190217214,0.26304901,101740.0,101730.0,1.36457226]
[1736190217720,0.26504901,101740.0,101730.0,1.36457226]
[1736190217923,0.27104901,101740.0,101730.0,1.36457226]
[1736190218317,0.26904901,101740.0,101730.0,1.36457226]
[1736190218516,0.27304901,101740.0,101730.0,1.36457226]
[1736190219016,0.12696059,101740.0,101730.0,1.59977064]
[1736190219425,0.14608842,101750.0,101740.0,0.14184713]
[1736190219717,0.14608842,101750.0,101740.0,0.57994713]
[1736190220106,0.14608842,101750.0,101740.0,1.30994713]
[1736190220419,0.17523843,101760.0,101740.0,1.48640982]
[1736190220420,0.32132685,101760.0,101740.0,1.48640982]
[1736190220723,0.005,101750.0,101740.0,1.39468969]
[1736190221321,0.32132685,101760.0,101740.0,1.39568969]
[1736190221519,0.15108842,101760.0,101750.0,0.3608]
[1736190221820,0.15108842,101760.0,101750.0,0.50264313]
[1736190223323,0.0384,101770.0,101750.0,0.9143042]
[1736190223519,0.0384,101770.0,101760.0,0.45352013]
[1736190223729,0.0384,101770.0,101760.0,0.50263813]
[1736190224123,0.0384,101770.0,101760.0,0.53923813]
[1736190224919,0.006,101770.0,101760.0,0.63195826]
[1736190225319,0.14608842,101780.0,101770.0,0.049113]
[1736190225623,0.14608842,101780.0,101770.0,1.23263313]
[1736190226725,0.004,101780.0,101770.0,1.40909582]
[1736190227421,0.008,101780.0,101770.0,1.41009582]
[1736190227622,0.28508842,101800.0,101780.0,0.049107]
[1736190227919,0.1,101800.0,101790.0,0.95614326]
[1736190228324,0.1,101800.0,101790.0,0.99434326]
[1736190229226,0.1,101800.0,101790.0,0.99534326]
[1736190229728,0.105,101800.0,101790.0,0.99534326]
[1736190230522,0.0773,101820.0,101810.0,0.049094]
[1736190230825,0.0773,101820.0,101810.0,0.50261413]
[1736190231227,0.18458842,101830.0,101820.0,0.049089]
[1736190231521,0.0385,101830.0,101820.0,0.50260913]
[1736190232622,0.0385,101830.0,101820.0,0.409889]
[1736190233239,0.0385,101830.0,101820.0,0.50260913]
[1736190233824,0.0385,101830.0,101820.0,0.50360913]
[1736190234030,0.0435,101830.0,101820.0,0.50360913]
[1736190236133,0.005,101830.0,101820.0,0.59632926]
[1736190237334,0.005,101830.0,101820.0,0.59532926]
[1736190237932,0.005,101830.0,101820.0,0.59632926]
[1736190238231,0.005,101830.0,101820.0,0.50360913]
[1736190238421,0.002,101830.0,101820.0,0.50360913]
[1736190238626,0.002,101830.0,101820.0,0.51323807]
[1736190239036,0.17465251,101840.0,101820.0,0.51323807]
[1736190239231,0.17465251,101840.0,101830.0,0.14180413]
[1736190239426,0.17465251,101840.0,101830.0,0.049084]
[1736190241835,0.12657351,101840.0,101830.0,0.049084]
[1736190243336,0.12657351,101840.0,101830.0,0.14180413]
[1736190244737,0.12657351,101840.0,101830.0,0.50260413]
[1736190245132,0.001,101840.0,101830.0,0.50260413]
[1736190245441,0.001,101840.0,101830.0,0.58500413]
[1736190245638,0.001,101840.0,101830.0,1.31500413]
[1736190246432,0.77417955,101860.0,101850.0,0.049074]
[1736190246636,0.049081,101840.0,101830.0,0.050083]
[1736190247032,0.0426,101840.0,101830.0,0.050083]
[1736190247342,0.0426,101840.0,101830.0,0.14280313]
[1736190248135,0.409877,101850.0,101830.0,0.50360313]
[1736190248341,0.539372,101860.0,101840.0,0.14179913]
[1736190248546,0.178572,101860.0,101850.0,0.049074]
[1736190248733,0.1295,101860.0,101850.0,0.049074]
[1736190249041,0.1295,101860.0,101850.0,0.14179413]
[1736190249227,0.1255,101860.0,101850.0,0.14179413]
[1736190249434,0.049074,101850.0,101840.0,0.049077]
[1736190249630,0.174571,101860.0,101850.0,0.049074]
[1736190249840,0.535371,101860.0,101850.0,0.049074]
[1736190250135,0.62809113,101860.0,101840.0,0.3608]
[1736190250346,0.62809113,101860.0,101830.0,0.40988]
[1736190250347,0.50259813,101850.0,101830.0,0.40988]
[1736190250536,0.0407,101840.0,101830.0,0.40988]
[1736190250730,0.4015,101840.0,101830.0,0.04908]
[1736190250937,0.450579,101840.0,101830.0,0.04908]
[1736190251729,0.54329913,101840.0,101820.0,1.14352894]
[1736190252045,0.18150413,101830.0,101820.0,0.05871594]
[1736190253246,0.088784,101830.0,101820.0,0.05871594]
[1736190253640,0.088784,101830.0,101820.0,0.05971594]
[1736190253840,0.18150413,101830.0,101820.0,0.05971594]
[1736190255641,0.54230413,101830.0,101820.0,0.05971594]
[1736190256337,0.68839255,101830.0,101820.0,0.05971594]
[1736190258242,0.86363098,101830.0,101820.0,0.01062894]
[1736190258535,0.049093,101820.0,101800.0,0.22555869]
[1736190258735,0.14181313,101810.0,101800.0,0.95555869]
[1736190259535,0.14181313,101810.0,101800.0,0.22555869]
[1736190259741,0.46313998,101810.0,101800.0,0.052096]
[1736190260046,0.46313998,101810.0,101800.0,0.060096]
[1736190260442,0.46313998,101810.0,101800.0,0.053096]
[1736190261247,0.31705156,101810.0,101800.0,0.053096]
[1736190262043,0.31705156,101810.0,101800.0,0.050096]
[1736190262440,0.14181313,101810.0,101800.0,0.050096]
[1736190263138,0.50261313,101810.0,101800.0,0.050096]
[1736190263334,0.50261313,101810.0,101800.0,0.001]
[1736190263839,0.64901826,101810.0,101800.0,0.001]
[1736190264051,0.64901826,101810.0,101800.0,0.050098]
[1736190265838,0.64901826,101810.0,101790.0,0.049101]
[1736190266043,0.58291813,101800.0,101790.0,0.049101]
[1736190266952,0.77032326,101800.0,101790.0,0.049101]
[1736190267142,0.77032326,101800.0,101790.0,0.053101]
[1736190267443,0.77032326,101800.0,101790.0,0.055101]
[1736190268247,0.72932326,101800.0,101790.0,0.055101]
[1736190268447,0.27580313,101800.0,101790.0,0.055101]
[1736190268842,0.36852326,101800.0,101790.0,0.055101]
[1736190269051,0.72932326,101800.0,101790.0,0.055101]
[1736190269553,0.58291813,101800.0,101790.0,0.055101]
[1736190270262,0.58291813,101800.0,101790.0,0.006]
[1736190270748,0.72932326,101800.0,101790.0,0.055103]
[1736190271853,0.63660313,101800.0,101790.0,0.055103]
[1736190272059,0.59640313,101800.0,101790.0,0.055103]
[1736190272355,0.54271813,101800.0,101790.0,0.055103]
[1736190272555,0.18191813,101800.0,101790.0,0.055103]
[1736190272856,0.18191813,101800.0,101790.0,0.785103]
[1736190274056,0.049098,101800.0,101790.0,0.055103]
[1736190274246,0.14181813,101800.0,101790.0,0.055103]
[1736190274443,0.14181813,101800.0,101790.0,0.785103]
[1736190275156,0.50261813,101800.0,101790.0,0.785103]
[1736190275357,0.50261813,101800.0,101790.0,0.055103]
[1736190276151,0.50261813,101800.0,101790.0,0.006]
[1736190276353,0.54361813,101800.0,101790.0,0.006]
[1736190276554,0.67493826,101800.0,101790.0,0.006]
[1736190276761,0.58221813,101800.0,101790.0,0.006]
[1736190277058,0.67493826,101800.0,101790.0,0.006]
[1736190277250,0.049108,101780.0,101770.0,0.049109]
[1736190277443,0.50262813,101780.0,101760.0,0.53736718]
[1736190277650,0.50263313,101770.0,101760.0,0.22557969]
[1736190278444,0.50263313,101770.0,101760.0,0.23528199]
[1736190278650,0.50263313,101770.0,101760.0,0.0588193]
[1736190279458,0.50263313,101770.0,101760.0,0.0628193]
[1736190280057,0.50263313,101770.0,101760.0,0.0588193]
[1736190280260,0.61946286,101770.0,101760.0,0.0588193]
[1736190280763,0.61946286,101770.0,101760.0,0.049117]
[1736190280764,0.62046286,101770.0,101760.0,0.049117]
[1736190283451,0.049118,101760.0,101750.0,1.23019986]
[1736190284765,0.049118,101760.0,101750.0,1.23519986]
[1736190285956,0.049118,101760.0,101750.0,0.50519986]
[1736190286154,0.50263813,101760.0,101750.0,0.14439986]
[1736190288160,0.61946786,101760.0,101750.0,0.14439986]
[1736190296670,0.61946786,101760.0,101750.0,0.09528086]
[1736190298261,0.61946786,101760.0,101750.0,0.05718086]
[1736190298573,0.71218799,101760.0,101750.0,0.005]
[1736190298769,0.79708799,101760.0,101750.0,0.005]
[1736190299973,1.00190182,101760.0,101750.0,0.005]
[1736190300760,0.77476156,101760.0,101750.0,0.005]
[1736190300959,0.86748169,101760.0,101750.0,0.054122]
[1736190301159,0.86748169,101760.0,101750.0,0.095522]
[1736190301670,0.62835643,101760.0,101750.0,0.095522]
[1736190301864,0.58515643,101760.0,101750.0,0.137522]
[1736190302570,0.22435643,101760.0,101750.0,0.137522]
[1736190302772,0.17523843,101760.0,101750.0,0.23024213]
[1736190302973,0.16607558,101760.0,101750.0,0.23024213]
[1736190303468,0.16607558,101760.0,101750.0,0.137522]
[1736190303659,0.61959571,101760.0,101750.0,0.005]
[1736190303868,0.73789571,101760.0,101750.0,0.005]
[1736190304061,0.83061584,101760.0,101750.0,0.005]
[1736190304263,0.76723271,101760.0,101750.0,0.005]
[1736190305074,0.59591258,101760.0,101750.0,0.005]
[1736190305273,0.59591258,101760.0,101750.0,0.095122]
[1736190305772,0.71757656,101760.0,101750.0,0.095122]
[1736190306075,0.17523843,101760.0,101750.0,0.18784213]
[1736190306372,0.17523843,101760.0,101750.0,0.58874213]
[1736190306568,0.049111,101780.0,101750.0,0.58874213]
[1736190306569,0.049111,101780.0,101770.0,0.049113]
[1736190306773,0.049111,101780.0,101770.0,0.409913]
[1736190307074,0.049111,101780.0,101770.0,0.14183313]
[1736190307075,0.25485731,101780.0,101770.0,0.14183313]
[1736190307275,0.25485731,101780.0,101770.0,0.409913]
[1736190307576,0.25485731,101780.0,101770.0,1.180013]
[1736190307775,0.25685731,101780.0,101770.0,1.180013]
[1736190308174,0.31487818,101780.0,101770.0,1.35647569]
[1736190308676,0.31887818,101780.0,101770.0,1.35647569]
[1736190309477,0.26976718,101780.0,101770.0,1.44919582]
[1736190310570,0.26776718,101780.0,101770.0,1.44919582]
[1736190310776,0.26776718,101780.0,101770.0,1.45019582]
[1736190311162,0.004,101780.0,101770.0,1.50893151]
[1736190311373,0.004,101780.0,101770.0,1.51093151]
[1736190311571,0.11722986,101790.0,101780.0,0.049108]
[1736190311764,0.11722986,101790.0,101780.0,0.58292813]
[1736190312574,0.14653732,101800.0,101780.0,0.97564826]
[1736190312777,0.11703418,101800.0,101790.0,1.03056026]
[1736190312972,0.11703418,101800.0,101790.0,1.80966326]
[1736190313173,0.11703418,101800.0,101790.0,1.71694313]
[1736190313370,0.11703418,101800.0,101790.0,1.80966326]
[1736190314171,0.24634631,101820.0,101810.0,0.049093]
[1736190314481,0.24634631,101820.0,101810.0,0.50261313]
[1736190314665,0.0406,101820.0,101810.0,0.409893]
[1736190315173,0.0406,101820.0,101810.0,0.50261313]
[1736190315369,0.0466,101820.0,101810.0,0.50361313]
[1736190315777,0.0506,101820.0,101810.0,0.50361313]
[1736190315977,0.0506,101820.0,101810.0,0.410893]
[1736190316373,0.0506,101820.0,101810.0,0.050093]
[1736190316578,0.0506,101820.0,101810.0,0.50361313]
[1736190316776,0.01,101820.0,101810.0,0.50361313]
[1736190317177,0.01,101820.0,101810.0,0.54421313]
[1736190317579,0.01,101820.0,101810.0,0.50361313]
[1736190317784,0.01,101820.0,101810.0,0.14281313]
[1736190318279,0.01,101820.0,101810.0,0.50361313]
[1736190318480,0.01,101820.0,101810.0,0.14281313]
[1736190318878,0.01,101820.0,101810.0,0.50361313]
[1736190319072,0.01,101820.0,101810.0,0.14281313]
[1736190319684,0.419889,101820.0,101810.0,0.050093]
[1736190320382,0.3708,101820.0,101810.0,0.14281313]
[1736190321283,0.01,101820.0,101810.0,0.14281313]
[1736190321587,0.01,101820.0,101810.0,0.50361313]
[1736190321988,0.01,101820.0,101810.0,0.54511313]
[1736190325490,0.01,101820.0,101810.0,0.68995991]
[1736190325686,0.44407343,101850.0,101840.0,0.049079]
[1736190325879,0.44407343,101850.0,101840.0,0.14179913]
[1736190326083,0.08327343,101850.0,101840.0,0.50259913]
[1736190326590,0.04127343,101850.0,101840.0,0.50259913]
[1736190326789,0.0488,101850.0,101840.0,0.50359913]
[1736190327495,0.0398,101850.0,101840.0,0.50259913]
[1736190327789,0.0458,101850.0,101840.0,0.50259913]
[1736190328185,0.0458,101850.0,101840.0,0.50359913]
[1736190328381,0.0458,101850.0,101840.0,0.14279913]
[1736190330996,0.0458,101850.0,101840.0,0.50359913]
[1736190331293,0.0458,101850.0,101840.0,0.14279913]
[1736190331592,0.0458,101850.0,101840.0,0.50359913]
[1736190331887,0.0458,101850.0,101840.0,0.14279913]
[1736190332895,0.0458,101850.0,101840.0,0.050079]
[1736190333692,0.4066,101850.0,101840.0,0.050079]
[1736190333894,0.0458,101850.0,101840.0,0.050079]
[1736190334289,0.0458,101850.0,101840.0,0.50359913]
[1736190335289,0.006,101850.0,101840.0,0.54299913]
[1736190335495,0.006,101850.0,101840.0,0.63571926]
[1736190335691,0.0409,101870.0,101860.0,0.049069]
[1736190335901,0.04427309,101880.0,101870.0,0.049064]
[1736190336089,0.00147309,101880.0,101870.0,0.50258413]
[1736190336586,0.00147309,101880.0,101870.0,0.049064]
[1736190336587,0.14325322,101880.0,101870.0,0.049064]
[1736190336993,0.50405322,101880.0,101870.0,0.049064]
[1736190338397,0.59159489,101880.0,101870.0,0.049064]
[1736190338598,0.59159489,101880.0,101870.0,0.050064]
[1736190338791,0.59359489,101880.0,101870.0,0.050064]
[1736190339300,0.63269489,101880.0,101870.0,0.050064]
[1736190345526,0.71972271,101880.0,101870.0,0.050064]
[1736190347311,0.62700258,101880.0,101870.0,0.050064]
[1736190348004,0.71972271,101880.0,101870.0,0.050064]
[1736190352404,0.69138956,101880.0,101870.0,0.050064]
[1736190354998,0.86595905,101880.0,101870.0,0.050064]
[1736190356421,0.35892271,101880.0,101870.0,0.050064]
[1736190356907,0.22710258,101880.0,101870.0,0.14278413]
[1736190357707,0.22710258,101880.0,101870.0,0.050064]
[1736190357908,0.22710258,101880.0,101870.0,0.14278413]
[1736190358115,0.22710258,101880.0,101870.0,0.050064]
[1736190358317,0.22710258,101880.0,101870.0,0.05994832]
[1736190358909,0.22710258,101880.0,101870.0,0.15266845]
[1736190359616,0.19904169,101880.0,101870.0,0.15266845]
[1736190360008,0.19904169,101880.0,101870.0,0.05994832]
[1736190360009,0.1975686,101880.0,101870.0,0.05994832]
[1736190360212,0.5583686,101880.0,101870.0,0.05994832]
[1736190360415,0.65108873,101880.0,101870.0,0.05994832]
[1736190360606,0.5583686,101880.0,101870.0,0.05994832]
[1736190360913,0.1975686,101880.0,101870.0,0.05994832]
[1736190361115,0.1975686,101880.0,101870.0,0.23565044]
[1736190362619,0.1975686,101880.0,101870.0,0.59645044]
[1736190364515,0.89067361,101880.0,101870.0,0.17670212]
[1736190364719,0.89067361,101880.0,101860.0,0.52874856]
[1736190364720,0.98153361,101880.0,101860.0,0.52874856]
[1736190364910,0.58478413,101870.0,101860.0,0.52874856]
[1736190365107,0.492064,101870.0,101860.0,0.52874856]
[1736190365406,0.089564,101870.0,101860.0,1.03133769]
[1736190365629,0.049064,101870.0,101860.0,0.50258913]
[1736190365917,0.049064,101870.0,101860.0,0.409869]
[1736190366913,0.37285354,101870.0,101860.0,0.410869]
[1736190367119,0.86957367,101870.0,101860.0,0.001]
[1736190367320,0.91177367,101870.0,101860.0,0.001]
[1736190367522,0.91377367,101870.0,101850.0,0.23519838]
[1736190367721,0.50258913,101860.0,101850.0,0.23519838]
[1736190368623,0.049079,101840.0,101830.0,0.52874856]
[1736190368816,0.50259913,101840.0,101830.0,0.52874856]
[1736190369418,0.409879,101840.0,101830.0,0.52874856]
[1736190370021,0.409879,101840.0,101830.0,0.57783256]
[1736190370209,0.73230902,101840.0,101830.0,0.049084]
[1736190371518,0.73230902,101840.0,101830.0,0.050084]
[1736190372119,0.82502915,101840.0,101830.0,0.001]
[1736190372515,0.86682915,101840.0,101830.0,0.001]
[1736190372911,0.77410902,101840.0,101830.0,0.001]
[1736190373124,0.73230902,101840.0,101830.0,0.09372013]
[1736190373521,0.73230902,101840.0,101830.0,0.001]
[1736190373723,0.82802915,101840.0,101830.0,0.050084]
[1736190373921,0.82902915,101840.0,101830.0,0.049084]
[1736190374120,0.049084,101830.0,101820.0,0.1021698]
[1736190374717,0.049084,101830.0,101820.0,0.0530818]
[1736190374718,0.14180413,101830.0,101820.0,0.0530818]
[1736190375020,0.049089,101820.0,101810.0,0.96667148]
[1736190375220,0.049089,101820.0,101810.0,1.10848461]
[1736190375536,0.049089,101820.0,101810.0,0.37848461]
[1736190375739,0.049089,101820.0,101810.0,0.0014731]
[1736190375740,0.13680939,101820.0,101810.0,0.0014731]
[1736190375936,0.13680939,101820.0,101800.0,0.22391613]
[1736190375937,0.049093,101810.0,101800.0,0.22391613]
[1736190376834,0.049093,101810.0,101800.0,0.58471613]
[1736190377033,0.049093,101810.0,101800.0,0.131196]
[1736190377632,0.050093,101810.0,101800.0,0.140196]
[1736190377827,0.050093,101810.0,101800.0,0.144196]
[1736190378040,0.001,101810.0,101800.0,0.59771613]
[1736190378543,0.001,101810.0,101800.0,0.60732027]
[1736190379341,0.001,101810.0,101800.0,0.51460014]
[1736190380338,0.050093,101810.0,101800.0,0.51460014]
[1736190381342,0.050093,101810.0,101800.0,1.24460014]
[1736190382841,0.050093,101810.0,101800.0,1.33732027]
[1736190383141,0.050093,101810.0,101800.0,1.24460014]
[1736190383943,0.001,101810.0,101800.0,1.33732027]
[1736190384945,0.001,101810.0,101800.0,0.88380014]
[1736190385243,0.001,101810.0,101800.0,1.24460014]
[1736190385545,0.050093,101810.0,101800.0,0.51460014]
[1736190386541,0.050093,101810.0,101800.0,0.15380014]
[1736190388449,0.050093,101810.0,101800.0,0.51460014]
[1736190388947,0.001,101810.0,101800.0,0.51460014]
[1736190389445,0.001,101810.0,101800.0,0.60732027]
[1736190390242,0.30863152,101820.0,101800.0,0.59632027]
[1736190390441,0.17651139,101820.0,101810.0,0.049093]
[1736190390648,0.13681139,101820.0,101810.0,0.049093]
[1736190390851,0.08772039,101820.0,101810.0,0.14181313]
[1736190391346,0.13680939,101820.0,101810.0,0.049093]
[1736190391749,0.22952952,101820.0,101810.0,0.049093]
[1736190392339,0.22952952,101820.0,101810.0,0.779093]
[1736190392949,0.22952952,101820.0,101810.0,0.780093]
[1736190393153,0.13680939,101820.0,101810.0,0.781093]
[1736190394053,0.08772039,101820.0,101810.0,1.23461313]
[1736190394252,0.08772039,101820.0,101810.0,1.27341313]
[1736190394746,0.08772039,101820.0,101810.0,0.91261313]
[1736190394951,0.08772039,101820.0,101810.0,1.27341313]
[1736190395146,0.08772039,101820.0,101810.0,1.180693]
[1736190396045,0.08772039,101820.0,101810.0,1.141893]
[1736190396644,0.08772039,101820.0,101810.0,0.781093]
[1736190397544,0.08772039,101820.0,101810.0,1.141893]
[1736190397751,0.99476065,101820.0,101810.0,0.002]
[1736190397953,0.0982,101800.0,101770.0,0.42363302]
[1736190398143,0.3608,101780.0,101770.0,0.42363302]
[1736190398340,0.50262813,101780.0,101770.0,0.42363302]
[1736190398545,0.049118,101760.0,101750.0,0.90720685]
[1736190398855,0.86343813,101760.0,101750.0,0.90720685]
[1736190399854,0.95615826,101760.0,101750.0,0.90920685]
[1736190400354,0.95615826,101760.0,101750.0,0.91420685]
[1736190401149,1.10417419,101760.0,101750.0,0.91420685]
[1736190401749,1.14477419,101760.0,101750.0,0.91420685]
[1736190402450,1.14477419,101760.0,101750.0,0.91220685]
[1736190402853,1.15077419,101760.0,101750.0,0.90820685]
[1736190403255,1.15377419,101760.0,101750.0,0.90820685]
[1736190403756,1.15377419,101760.0,101750.0,0.001]
[1736190404251,0.049132,101730.0,101720.0,0.78122114]
[1736190404555,0.50265213,101730.0,101720.0,0.05122114]
[1736190405649,0.049132,101730.0,101720.0,0.46315814]
[1736190405951,0.1362823,101730.0,101720.0,0.46315814]
[1736190406848,0.1362823,101730.0,101720.0,0.46815814]
[1736190408855,0.049132,101730.0,101720.0,0.46815814]
[1736190409255,0.14185213,101730.0,101720.0,0.46815814]
[1736190410255,0.049132,101730.0,101720.0,0.46815814]
[1736190410560,0.14185213,101730.0,101720.0,1.19815814]
[1736190411251,0.049132,101730.0,101720.0,1.19815814]
[1736190411647,0.1362783,101740.0,101730.0,0.049132]
[1736190411848,0.0871503,101740.0,101730.0,0.54415213]
[1736190412053,0.0223503,101740.0,101730.0,0.54415213]
[1736190412659,0.08855071,101750.0,101740.0,0.049127]
[1736190412857,0.08855071,101750.0,101740.0,0.54314713]
[1736190413053,0.23038984,101760.0,101750.0,0.049122]
[1736190413253,0.23038984,101760.0,101750.0,0.449122]
[1736190414260,0.14183913,101760.0,101750.0,0.449122]
[1736190414557,0.14183913,101760.0,101740.0,1.180427]
[1736190414758,0.14183913,101760.0,101750.0,0.049122]
[1736190415661,0.056119,101760.0,101750.0,0.050122]
[1736190416360,0.055119,101760.0,101750.0,0.14284213]
[1736190416660,0.058119,101760.0,101750.0,0.14284213]
[1736190417459,0.009,101760.0,101750.0,0.14284213]
[1736190417859,0.009,101760.0,101750.0,0.18284213]
[1736190418754,0.009,101760.0,101750.0,0.54364213]
[1736190418964,0.009,101760.0,101750.0,0.63636226]
[1736190419259,0.009,101760.0,101750.0,0.18284213]
[1736190419556,0.009,101760.0,101750.0,1.27364213]
[1736190419860,0.00147456,101770.0,101750.0,1.36636226]
[1736190420055,0.31968962,101790.0,101780.0,0.049108]
[1736190420253,0.14525051,101790.0,101780.0,0.50262813]
[1736190420458,0.14525051,101790.0,101780.0,0.90302813]
[1736190421554,0.08045051,101790.0,101780.0,0.99574826]
[1736190421858,0.68192215,101820.0,101810.0,0.049093]
[1736190422065,0.68192215,101820.0,101810.0,0.14181313]
[1736190422356,0.68192215,101820.0,101810.0,0.049093]
[1736190422759,0.32112215,101820.0,101810.0,0.14181313]
[1736190422961,0.32112215,101820.0,101810.0,0.50261313]
[1736190423153,0.32112215,101820.0,101810.0,0.54191313]
[1736190423354,0.00547397,101820.0,101810.0,0.54191313]
[1736190424458,0.00547397,101820.0,101810.0,0.14181313]
[1736190426665,0.00547397,101820.0,101810.0,0.049093]
[1736190426865,0.41536297,101820.0,101810.0,0.049093]
[1736190427258,0.41536297,101820.0,101810.0,0.14181313]
[1736190427659,0.36627397,101820.0,101810.0,0.14181313]
[1736190428061,0.00547397,101820.0,101810.0,0.14181313]
[1736190428667,0.36627397,101820.0,101810.0,0.14181313]
[1736190429368,0.00547397,101820.0,101810.0,0.14181313]
[1736190434866,0.00547397,101820.0,101810.0,0.50261313]
[1736190435470,0.62721411,101850.0,101810.0,0.59533326]
[1736190435768,0.62721411,101850.0,101840.0,0.049079]
[1736190435968,0.62721411,101850.0,101840.0,0.14179913]
[1736190436369,0.452775,101850.0,101840.0,0.049079]
[1736190436964,0.457775,101850.0,101840.0,0.050079]
[1736190437370,0.55049513,101850.0,101840.0,0.050079]
[1736190438065,0.457775,101850.0,101840.0,0.050079]